Cogmind - Beta 15 @@@ ROGUE MODE // 2025.08.11 @ 08:09:07 Player: karotgaemin Result: Self-destructed Performance ------------- Evolutions (6) 3000 Regions Visited (8) 1600 Robots Destroyed (84) 420 Value Destroyed (3165) 3165 Prototype IDs (3) 60 Alien Tech Used (0) 0 Bonus (157) 157 TOTAL SCORE: 8402 Bonus ------- Follower Combat Kills 157 Cogmind --------- Core Integrity 773/1150 Matter 153/300 Energy 111/150 System Corruption 21% Temperature Cool (9) Movement Walking (185) Ox1 Location -4/Factory Parts ------- > --- POWER (2) -------- Light Angular Momentum Engine > --- PROPULSION (4) --- Flexi-carbon Leg Advanced VSS Leg > --- UTILITY (11) ----- Large Storage Unit Advanced Target Analyzer > --- WEAPON (2) ------- Thermic Laser Long-range Missile Launcher > --- INVENTORY (15) --- Light Deuterium Engine Angular Momentum Engine Carbon-fiber Leg Titanium Leg Improved Heat Sink Weapon Cycler Improved Weapon Cycler High-powered Shock Rifle Heavy Laser Heavy Laser Heavy Laser Plasma Rifle Beamcaster Proton Cannon Heavy Plasma Cannon Peak State ------------ > --- POWER ------------ Light Angular Momentum Engine Micro Fission Core > --- PROPULSION ------- Flexi-carbon Leg Flexi-carbon Leg Advanced VSS Leg Shield Leg > --- UTILITY ---------- Advanced Heat Sink Large Storage Unit Advanced Signal Interpreter Advanced Target Analyzer Advanced Particle Charger Quantum Capacitor Improved Weapon Cycler Improved Weapon Cycler Improved Transmission Jammer Layered Medium Armor Plating > --- WEAPON ----------- Thermic Laser Beamcaster > --- INVENTORY -------- Light Deuterium Engine Angular Momentum Engine Carbon-fiber Leg Titanium Leg Improved Heat Sink Weapon Cycler High-powered Shock Rifle Heavy Laser Heavy Laser Heavy Laser Beamcaster Proton Cannon Heavy Plasma Cannon Long-range Missile Launcher [Rating: 112] Favorites ----------- Power Fission Core Engine Ion Engine Power Core Fission Core Propulsion Aluminum Leg Leg Aluminum Leg Wheel Wheel Utility Large Storage Unit Device Improved Heat Sink Storage Large Storage Unit Processor Signal Interpreter Hackware Hacking Suite Protection Layered Medium Armor Plating Weapon Beamcaster Energy Gun Beamcaster Energy Cannon Particle Cannon Launcher Long-range Missile Launcher Build | -11 -10 -9 -9 -8 -7 -6 -5 -4 ------- Run | Yrd Mat Mat Min Mat Fac Fac Fac Fac Slots Evolved 12 | . . 2 . 2 2 2 2 2 Power 1 | . . . . . . 1 . . Propulsion 2 | . . 2 . . . . . . Utility 9 | . . . . 2 2 1 2 2 Weapon . | . . . . . . . . . Parts Attached 113 | 6 10 13 1 20 13 21 15 14 Power 20 | 1 2 1 1 5 2 5 3 . Engine 14 | 1 2 1 1 4 . 3 2 . Core 6 | . . . . 1 2 2 1 . Reactor . | . . . . . . . . . Propulsion 33 | 2 4 7 . 7 2 6 3 2 Treads . | . . . . . . . . . Leg 31 | 2 2 7 . 7 2 6 3 2 Wheel 2 | . 2 . . . . . . . Hover . | . . . . . . . . . Flight . | . . . . . . . . . Utility 36 | 1 2 3 . 3 5 7 7 8 Device 19 | . . 3 . 2 1 3 5 5 Storage 4 | 1 1 . . . . . 1 1 Processor 8 | . 1 . . 1 1 2 1 2 Hackware 1 | . . . . . 1 . . . Protection 4 | . . . . . 2 2 . . Artifact . | . . . . . . . . . Weapon 24 | 2 2 2 . 5 4 3 2 4 Energy Gun 18 | 2 2 1 . 3 4 2 1 3 Energy Cannon 3 | . . 1 . . . 1 1 . Ballistic Gun . | . . . . . . . . . Ballistic Cannon . | . . . . . . . . . Launcher 3 | . . . . 2 . . . 1 Special Weapon . | . . . . . . . . . Impact Weapon . | . . . . . . . . . Slashing Weapon . | . . . . . . . . . Piercing Weapon . | . . . . . . . . . Special Melee Weapon . | . . . . . . . . . Unidentified Prototypes 3 | . . . . . 1 . 1 1 Corrupted Parts 1 | . . . . . . 1 . . System Corruption 5 | . . . . . . 5 . . Parts Lost 46 | . 5 2 . 4 8 11 4 12 Power 7 | . 1 1 . 1 1 1 1 1 Propulsion 18 | . 2 1 . 3 3 6 1 2 Utility 16 | . 1 . . . 2 2 2 9 Weapon 5 | . 1 . . . 2 2 . . Highest Loss Streak 9 | . 3 2 . 4 3 6 2 9 To Critical Strikes 1 | . . . . . . . 1 . Average Backups 11 | 1 4 11 15 14 12 12 13 11 Power 1 | . 1 1 1 1 1 2 2 2 Propulsion 1 | . 1 2 3 3 2 . . . Utility 3 | . . 3 5 3 3 3 4 2 Weapon 4 | . 1 4 6 5 4 5 5 6 Tool/Special . | . . . . . . . . . Unused Backups 11 | . . 1 . 1 1 . 2 6 Power . | . . . . . . . . . Propulsion 1 | . . 1 . . . . . . Utility 4 | . . . . . 1 . 2 1 Weapon 6 | . . . . 1 . . . 5 Tool/Special . | . . . . . . . . . Average Slot Usage (%) 95 | . 87 93 100 97 98 97 98 92 Engine 7 | . 13 10 11 4 3 6 5 5 Core 3 | . . . . 4 3 5 4 4 Leg 26 | . 13 40 44 34 29 24 22 20 Wheel 1 | . 13 . . . . . . . Device 16 | . . 8 11 18 19 20 28 25 Storage 8 | . 14 11 11 9 7 6 5 5 Processor 9 | . 3 . . 8 15 13 11 14 Protection 2 | . . . . . 1 4 4 4 Energy Gun 13 | . 27 15 11 10 14 10 5 9 Energy Cannon 3 | . . 6 11 7 . 2 4 . Peak Build Rating 112 | 6 7 17 17 33 41 60 79 112 Average Rating 38 | 4 6 12 16 21 36 53 73 89 On Entrance 27 | . 6 6 17 16 33 37 57 71 Naked Turns . | . . . . . . . . . Heaviest Build 73 | 13 28 35 35 40 44 64 73 66 Greatest Support 83 | 20 26 46 46 58 63 70 71 83 Greatest Overweight (x) 4 | 3 1 1 . 3 1 4 1 1 Average Overweight (x) . | . . . . . . . . . Largest Inventory Capacity 15 | 8 15 15 15 15 15 15 15 15 Average Capacity 14 | 7 12 15 15 15 15 15 14 14 Most Carried 15 | 4 7 15 15 15 15 15 15 15 Average Carried 11 | 1 4 11 15 14 12 12 13 11 Final Capacity 15 | 8 15 15 15 15 15 15 15 15 Final Carried 15 | 4 7 15 15 15 11 11 15 15 Class Distribution -------------------- 60% | Scavenger-Mutant 23% | Mutant 16% | Scavenger-Skirmisher Dominant Class ---------------- Mutant | -10/Materials Scavenger-Mutant | -9/Materials Scavenger-Mutant | -9/Mines Scavenger-Mutant | -8/Materials Scavenger-Skirmisher | -7/Factory Scavenger-Mutant | -6/Factory Scavenger-Mutant | -5/Factory Scavenger-Skirmisher | -4/Factory Resources | -11 -10 -9 -9 -8 -7 -6 -5 -4 ----------- Run | Yrd Mat Mat Min Mat Fac Fac Fac Fac Matter Collected 1681 | 88 321 157 10 251 112 426 260 56 Remotely . | . . . . . . . . . Salvage Created 3080 | . 337 604 87 198 288 762 652 152 Parts 154 | . 21 38 11 9 16 39 20 . Haulers Intercepted . | . . . . . . . . . Recyclers Shooed 3 | . . 1 . 2 . . . . Parts Field Recycled . | . . . . . . . . . Retrieved Matter . | . . . . . . . . . Parts Self-Destructed . | . . . . . . . . . Prevented . | . . . . . . . . . Kills | -11 -10 -9 -9 -8 -7 -6 -5 -4 ------- Run | Yrd Mat Mat Min Mat Fac Fac Fac Fac Combat Hostiles Destroyed 74 | . 11 17 6 3 8 16 10 3 Guns 44 | . 11 6 2 3 6 9 6 1 Cannons 17 | . . 9 4 . . 2 2 . AOE 6 | . . . . . 1 3 . 2 Classes Destroyed 13 | . 4 3 . 3 1 1 . 1 Worker 4 | . 1 1 . . 1 1 . . Builder 2 | . 1 . . . . 1 . . Recycler 1 | . . . . 1 . . . . Mechanic 1 | . . . . . . . . 1 Operator 2 | . . 1 . . . 1 . . Swarmer 25 | . 6 6 6 . 3 4 . . Grunt 28 | . 5 8 . . . 6 7 2 Brawler 1 | . . . . . . 1 . . Duelist 2 | . . 1 . . . 1 . . Sentry 8 | . . 2 . . 2 3 1 . Specialist 2 | . . . . 2 . . . . Hunter 1 | . . . . 1 . . . . Programmer 7 | . . . . . 3 1 2 1 Best Kill Streak 5 | . 4 3 3 4 3 5 4 3 Combat Bots Only 4 | . 3 3 3 3 3 4 4 2 Max Kills in Single Turn 3 | . 1 1 2 2 1 2 1 3 Gunslinging 1 | . . . . . . 1 . . Exploded 2 | . . . . . 1 1 . 2 Melee . | . . . . . . . . . Uniques/NPCs Destroyed . | . . . . . . . . . Combat | -11 -10 -9 -9 -8 -7 -6 -5 -4 -------- Run | Yrd Mat Mat Min Mat Fac Fac Fac Fac Hostile Shots Fired 624 | . 56 81 11 46 111 160 101 58 Missed 201 | . 12 22 4 7 50 59 28 19 Hits 423 | . 44 59 7 39 61 101 73 39 Melee 13 | . . 3 . . . 5 . 5 Projectile 410 | . 44 56 7 39 61 96 73 34 Critical Strikes 14 | . . 1 . . 1 3 4 5 Damage Taken 7265 | . 525 707 57 723 879 1655 1130 1589 Core 1241 | . 106 117 7 126 105 307 96 377 Absorbed by Shields 530 | . . . . . . 221 309 . Redirected to Shielding 5 | . . . . . . 5 . . Regen/Repaired (Parts) 97 | . . . . 97 . . . . Core Remaining (%) 77 | 100 57 . 69 77 85 63 90 . Volleys Fired 221 | . 36 48 6 10 31 45 34 11 Largest 2 | . 2 2 2 2 2 2 2 2 Hottest 165 | . 90 124 124 131 138 143 165 165 Shots Fired 424 | . 69 96 12 20 58 83 65 21 Gun 318 | . 69 61 6 14 58 65 31 14 Cannon 93 | . . 35 6 3 . 13 34 2 Launcher 13 | . . . . 3 . 5 . 5 Special . | . . . . . . . . . Kinetic . | . . . . . . . . . Thermal 349 | . 62 96 12 17 43 38 65 16 Explosive 13 | . . . . 3 . 5 . 5 Electromagnetic 62 | . 7 . . . 15 40 . . Robot Hit Streak 16 | . 7 12 2 12 16 9 8 6 Robot Miss Streak 6 | . 3 4 2 3 4 6 3 4 Penetration Max . | . . . . . . . . . Secondary Targets 3 | . 1 . . . . 2 . . Max Gunslinging Chain 1 | . 1 . . . . 1 . . Shots Hit Robots 277 | . 42 66 6 14 36 59 40 14 Core Hits 146 | . 20 26 6 6 17 44 18 9 Critical Kills 1 | . . 1 . . . . . . Critical Parts Destroyed . | . . . . . . . . . Critical Strikes 17 | . 2 8 . . 3 . 3 1 Burn 16 | . 2 7 . . 3 . 3 1 Meltdown 1 | . . 1 . . . . . . Melee Attacks . | . . . . . . . . . Impact . | . . . . . . . . . Slashing . | . . . . . . . . . Piercing . | . . . . . . . . . Sneak Attacks . | . . . . . . . . . Combat Hostiles . | . . . . . . . . . Follow-up Attacks . | . . . . . . . . . Damage Inflicted 7880 | . 659 1106 127 451 936 2302 1168 1131 Guns 3797 | . 523 580 44 206 722 1058 433 231 Cannons 1627 | . . 513 83 40 . 256 735 . Explosions 2415 | . 112 . . 205 210 988 . 900 Melee . | . . . . . . . . . Ramming 41 | . 24 13 . . 4 . . . Kinetic . | . . . . . . . . . Thermal 5048 | . 584 1093 127 246 777 822 1168 231 Explosive 1921 | . . . . 205 69 747 . 900 Electromagnetic 870 | . 51 . . . 86 733 . . Impact . | . . . . . . . . . Slashing . | . . . . . . . . . Piercing . | . . . . . . . . . Highest Corruption 21 | . 5 . . . 2 11 2 21 Average Corruption 3 | . 3 . . . 1 6 1 7 Corruption Purged . | . . . . . . . . . Corruption Blocked . | . . . . . . . . . Effects 49 | . 10 . . . 10 19 4 6 Message Errors 13 | . 4 . . . 1 6 1 1 Matter Fused 5 | . 1 . . . . 2 . 2 Heat Flow Errors 7 | . . . . . 2 3 1 1 Energy Discharges 7 | . 1 . . . 2 2 2 . Parts Rejected 1 | . . . . . . 1 . . Parts Fused 2 | . . . . . 1 1 . . Data Loss (minor) 6 | . 2 . . . 2 1 . 1 Data Loss (major) 2 | . 1 . . . . 1 . . Misfires 3 | . . . . . 1 2 . . Weapon Failures 3 | . 1 . . . 1 . . 1 Overload Shots . | . . . . . . . . . Overflow Damage 325 | . 6 . . . 99 96 22 102 Projectiles 22 | . . . . . . . 22 . Explosions 303 | . 6 . . . 99 96 . 102 Melee . | . . . . . . . . . Knockbacks . | . . . . . . . . . Impact . | . . . . . . . . . Kinetic . | . . . . . . . . . Secondary . | . . . . . . . . . Self-Inflicted Damage 686 | . 65 . . 41 169 288 . 123 Shots 15 | . 1 . . 2 2 7 . 3 Rammed 1 | . 1 . . . . . . . Targets Rammed 4 | . 2 1 . . 1 . . . Kicked 3 | . 1 1 . . 1 . . . Crushed . | . . . . . . . . . Highest Temperature 377 | . 377 189 60 66 354 356 285 144 Average Temperature 88 | . 115 56 27 17 88 114 93 45 Received Heat Transfer 1592 | . 180 213 . 117 84 429 404 165 Effects 6 | . 4 . . . 2 . . . Shutdowns 1 | . 1 . . . . . . . Energy Bleed 1 | . 1 . . . . . . . Interference 4 | . 2 . . . 2 . . . Siege Activations . | . . . . . . . . . Martial Activations . | . . . . . . . . . Shielding Activations 1 | . . . . . . . . 1 Total Turns 3 | . . . . . . . . 3 Longest Duration 3 | . . . . . . . . 3 Robots Disrupted . | . . . . . . . . . Combat Hostiles . | . . . . . . . . . Robots Corrupted 1 | . . . . . . 1 . . Combat Hostiles 1 | . . . . . . 1 . . Parts Fried 5 | . . . . . . 5 . . Impact Corruptions . | . . . . . . . . . Robots Melted 6 | . . 2 . . 1 1 2 . Combat Hostiles 6 | . . 2 . . 1 1 2 . Parts Melted 22 | . 1 7 . 1 7 2 4 . Heat Transferred 10581 | . 1536 2929 259 481 1358 1382 2062 574 Parts Sabotaged . | . . . . . . . . . Parts Stolen . | . . . . . . . . . Parts Stripped . | . . . . . . . . . Power Chain Reactions 2 | . 1 . . . 1 . . . Alert | -11 -10 -9 -9 -8 -7 -6 -5 -4 ------- Run | Yrd Mat Mat Min Mat Fac Fac Fac Fac Maximum Alert Level 1 | . . 1 . . . 1 . . Low Security (%) 90 | 100 100 87 100 100 100 58 100 100 Level 1 9 | . . 12 . . . 41 . . Level 2 . | . . . . . . . . . Level 3 . | . . . . . . . . . Level 4 . | . . . . . . . . . Level 5 . | . . . . . . . . . High Security . | . . . . . . . . . Max Security . | . . . . . . . . . Peak Influence 380 | . 96 233 189 94 129 380 157 73 Initial 157 | . . 26 78 65 23 39 157 20 Average 68 | . 25 91 141 35 25 175 57 7 Influence Increases 2751 | . 289 451 151 316 317 749 279 199 Destroy 0b10 Robot/C 1620 | . 220 340 120 200 160 320 200 60 Destroy 0b10 Robot/NC 65 | . 10 10 . 20 5 15 . 5 Destroy Leader 362 | . 40 70 20 42 60 70 40 20 Allied During Kill 48 | . . . 11 37 . . . . Disable Machine 165 | . . 15 . . 45 105 . . Anti-Garrison Action 150 | . . . . . . 150 . . Destroy Structure 266 | . 4 1 . 17 47 59 24 114 Lose Combat Pursuer 75 | . 15 15 . . . 30 15 . Influence Decreases 2688 | . 225 314 183 433 288 508 559 178 Entered New Map 523 | . . 38 123 104 29 42 165 22 Time Decay 1754 | . 191 276 60 229 222 356 354 66 Lost Part 351 | . 34 . . 40 37 110 40 90 Lost Ally 60 | . . . . 60 . . . . Squads Dispatched 17 | . 1 1 . 3 2 5 3 2 Investigation 3 | . . . . 2 . . 1 . Extermination 5 | . . . . . 2 2 1 . Reinforcement 5 | . 1 1 . 1 . 1 1 . Assault 4 | . . . . . . 2 . 2 Garrison . | . . . . . . . . . Intercept . | . . . . . . . . . Searches Triggered . | . . . . . . . . . Construction Impeded 1 | . . . . . . . 1 . Haulers Reinforced . | . . . . . . . . . Active Scanning Responses . | . . . . . . . . . Cargo Convoy Interrupts . | . . . . . . . . . Stealth | -11 -10 -9 -9 -8 -7 -6 -5 -4 --------- Run | Yrd Mat Mat Min Mat Fac Fac Fac Fac Distress Signals 4 | . 2 1 . . . 1 . . Communications Jammed . | . . . . . . . . . Distress Signals . | . . . . . . . . . Times Spotted 118 | . 17 23 4 13 11 27 15 8 Peak Tracking Total 6 | . 5 6 3 3 3 6 5 5 Tactical Retreats 5 | . 1 1 . . . 2 1 . Traps | -11 -10 -9 -9 -8 -7 -6 -5 -4 ------- Run | Yrd Mat Mat Min Mat Fac Fac Fac Fac Traps Triggered 11 | . 6 . . . . . 4 1 Indirectly . | . . . . . . . . . Trap Hack Attempts . | . . . . . . . . . Triggered . | . . . . . . . . . Disarmed . | . . . . . . . . . Reprogrammed . | . . . . . . . . . Reused . | . . . . . . . . . Traps Extracted . | . . . . . . . . . Installed . | . . . . . . . . . Triggered . | . . . . . . . . . Machines | -11 -10 -9 -9 -8 -7 -6 -5 -4 ---------- Run | Yrd Mat Mat Min Mat Fac Fac Fac Fac Machines Disabled 12 | . . 1 . . 3 8 . . Max in Single Turn 4 | . . 1 . . 2 4 . . Garrison Access 2 | . . . . . . 1 . 1 Machines Repaired . | . . . . . . . . . Machines Dismantled . | . . . . . . . . . Machines Sabotaged . | . . . . . . . . . Overloaded Fab Kills . | . . . . . . . . . Hacking | -11 -10 -9 -9 -8 -7 -6 -5 -4 --------- Run | Yrd Mat Mat Min Mat Fac Fac Fac Fac Machines Accessed 4 | . . . . 2 1 1 . . Terminals 3 | . . . . 1 1 1 . . Fabricators . | . . . . . . . . . Repair Stations 1 | . . . . 1 . . . . Recycling Units . | . . . . . . . . . Scanalyzers . | . . . . . . . . . Garrison Access . | . . . . . . . . . Total Hacks 7 | . . . . 5 1 1 . . Successful 5 | . . . . 3 1 1 . . Failed 2 | . . . . 2 . . . . Catastrophic . | . . . . . . . . . Database Lockouts . | . . . . . . . . . Manual . | . . . . . . . . . Terminals 5 | . . . . 3 1 1 . . Fabricators . | . . . . . . . . . Repair Stations 2 | . . . . 2 . . . . Recycling Units . | . . . . . . . . . Scanalyzers . | . . . . . . . . . Garrison Access . | . . . . . . . . . Terminal Hacks 3 | . . . . 1 1 1 . . Record 1 | . . . . 1 . . . . Alert Level 2 | . . . . . 1 1 . . Fabricator Hacks . | . . . . . . . . . Repair Station Hacks 2 | . . . . 2 . . . . Scan Component 1 | . . . . 1 . . . . Repair 1 | . . . . 1 . . . . Recycling Unit Hacks . | . . . . . . . . . Scanalyzer . | . . . . . . . . . Garrison Access Hacks . | . . . . . . . . . Unauthorized Hacks . | . . . . . . . . . Terminals . | . . . . . . . . . Fabricators . | . . . . . . . . . Repair Stations . | . . . . . . . . . Recycling Units . | . . . . . . . . . Scanalyzers . | . . . . . . . . . Garrison Access . | . . . . . . . . . Data Cores Recovered 1 | . . . . . . 1 . . Used . | . . . . . . . . . Hacking Detections 2 | . . . . 1 . 1 . . Full Trace Events 1 | . . . . 1 . . . . Feedback Events . | . . . . . . . . . Feedback Blocked . | . . . . . . . . . Robot Schematics Acquired . | . . . . . . . . . Robots Built . | . . . . . . . . . Authchips . | . . . . . . . . . Time . | . . . . . . . . . Total Robot Build Rating . | . . . . . . . . . Part Schematics Acquired . | . . . . . . . . . Parts Built . | . . . . . . . . . Authchips . | . . . . . . . . . Time . | . . . . . . . . . Total Part Build Rating . | . . . . . . . . . Parts Repaired 1 | . . . . 1 . . . . Time 32 | . . . . 32 . . . . Parts Recycled . | . . . . . . . . . Recycled Matter . | . . . . . . . . . Retrieved Matter . | . . . . . . . . . Retrieved Components . | . . . . . . . . . Parts Scanalyzed . | . . . . . . . . . Part Schematics Acquired . | . . . . . . . . . Parts Damaged . | . . . . . . . . . Bothacking | -11 -10 -9 -9 -8 -7 -6 -5 -4 ------------ Run | Yrd Mat Mat Min Mat Fac Fac Fac Fac Used RIF Installer . | . . . . . . . . . Robots Hacked . | . . . . . . . . . Non-combat . | . . . . . . . . . Combat . | . . . . . . . . . Robot Hacks Applied . | . . . . . . . . . Relay Couplers Released 4 | . . . . . . 2 . 2 Machine Destruction 4 | . . . . . . 2 . 2 Fabnet Peak Effective % . | . . . . . . . . . Robots Rewired . | . . . . . . . . . Allies Hacked . | . . . . . . . . . Hacks Repelled . | . . . . . . . . . Allies | -11 -10 -9 -9 -8 -7 -6 -5 -4 -------- Run | Yrd Mat Mat Min Mat Fac Fac Fac Fac Total Allies 4 | . . . 4 . . . . . Largest Group 4 | . . . 4 4 . . . . Highest-Rated Group 71 | . . . 71 71 . . . . Highest-Rated Ally 31 | . . . 31 31 . . . . Total Orders . | . . . . . . . . . Ally Attacks 30 | . . . . 30 . . . . Total Damage 439 | . . . . 439 . . . . Kills 11 | . . . . 11 . . . . Allies Corrupted . | . . . . . . . . . Allies Melted 1 | . . . . . . . 1 . Intel | -11 -10 -9 -9 -8 -7 -6 -5 -4 ------- Run | Yrd Mat Mat Min Mat Fac Fac Fac Fac Active Infowar (turns) 4196 | . . . . 631 1087 1124 971 383 Optics 3387 | . . . . . 1087 1124 971 205 Sensors 1638 | . . . . 631 802 . . 205 Jamming 375 | . . . . . . . . 375 Robot Analysis Total . | . . . . . . . . . Derelict Logs Recovered . | . . . . . . . . . Drone Launches . | . . . . . . . . . Drone Recoveries . | . . . . . . . . . Exploration | -11 -10 -9 -9 -8 -7 -6 -5 -4 ------------- Run | Yrd Mat Mat Min Mat Fac Fac Fac Fac Turns Passed 6095 | 90 877 794 124 631 1087 1124 971 397 Spaces Moved 3773 | 64 573 457 84 391 732 718 518 236 Core 15 | 14 1 . . . . . . . Treads . | . . . . . . . . . Legs 3442 | 50 256 457 84 391 732 718 518 236 Wheels 316 | . 316 . . . . . . . Hover . | . . . . . . . . . Flight . | . . . . . . . . . Fastest Speed 50 | 50 90 120 120 120 120 122 125 117 Average Speed 127 | 121 117 121 120 122 121 133 156 122 Slowest Speed 400 | 200 190 190 120 330 190 400 200 185 Overloaded Moves . | . . . . . . . . . Propulsion Burnouts . | . . . . . . . . . Robots Hopped . | . . . . . . . . . Potential Cave-ins 1 | . . . . . . . . 1 Cave-ins Triggered 1 | . . . . . . . . 1 Exploration Rate (%) 25 | 4 86 31 16 34 16 22 13 6 Regions Visited 8 Branch Regions 1 Pre-discovered Areas . | . . . . . . . . . Known Exits Taken 4 | . . . . 1 1 1 1 . Unknown Exits Taken 4 | 1 1 1 1 . . . . . Scrap Searched . | . . . . . . . . . Spaces Dug 4 | . . . . . . . 4 . Terrain Destroyed 207 | . 3 . . 24 49 57 14 60 Melee . | . . . . . . . . . Projectile 16 | . . . . . . . 14 2 AOE 191 | . 3 . . 24 49 57 . 58 Terrain Rammed . | . . . . . . . . . Walls Destroyed . | . . . . . . . . . Machines Disabled . | . . . . . . . . . Actions | -11 -10 -9 -9 -8 -7 -6 -5 -4 --------- Run | Yrd Mat Mat Min Mat Fac Fac Fac Fac Total 4638 | 73 700 600 96 529 863 811 644 322 Wait 355 | . 64 66 4 83 64 9 23 42 Move 3764 | 63 572 456 83 390 731 717 517 235 Hop . | . . . . . . . . . Pick Up 73 | 4 6 8 1 8 9 4 23 10 Fast Attach 45 | 6 9 4 . 4 3 8 7 4 Attach 31 | . 4 2 . 4 7 7 2 5 Detach 1 | . . . . 1 . . . . Swap 87 | . 6 9 1 15 13 17 18 8 Drop 56 | . 1 6 1 14 4 4 20 6 Fire 221 | . 36 48 6 10 31 45 34 11 Melee . | . . . . . . . . . Ram 1 | . 1 . . . . . . . Kick 3 | . 1 1 . . 1 . . . Crush . | . . . . . . . . . Escape Stasis 1 | . . . . . . . . 1 Rewire . | . . . . . . . . . Trap . | . . . . . . . . . Miscellaneous . | . . . . . . . . . Route ------- -11/Scrapyard -10/Materials (discovered 4 exits: *Mat x2 / [*Min x2]) -9/Materials -9/Mines -8/Materials -7/Factory (discovered 2 exits: *Fac / *Low) -6/Factory -5/Factory -4/Factory History --------- Turn | Location | Event 16 | -11/Scrapyard | Discovered new exit (range 16) 91 | -11/Scrapyard | Entered Materials 106 | -10/Materials | Discovered new exit (range 9) 241 | -10/Materials | Discovered new exit (range 10) 305 | -10/Materials | Build established: Mutant 427 | -10/Materials | Lost 3 parts (1p1n1w) 539 | -10/Materials | Discovered new exit (range 15) 684 | -10/Materials | Discovered new exit (range 16) 891 | -10/Materials | Derelicts attacked the area 968 | -10/Materials | Entered another Materials area 968 | -9/Materials | Evolved 2 slots: Propulsion x2 1622 | -9/Materials | Build established: Scavenger-Mutant 1749 | -9/Materials | Discovered new exit (range 11) 1762 | -9/Materials | Entered Mines 1815 | -9/Mines | Assisted by bots powering up and referring to "LRC-V3" 1866 | -9/Mines | Escorted by a lone wolf Derelict 1870 | -9/Mines | Discovered new exit (range 11) 1886 | -9/Mines | Entered Materials 1886 | -8/Materials | Accompanied by 4 allies 1886 | -8/Materials | Evolved 2 slots: Utility x2 1949 | -8/Materials | Repaired Imp. Aluminum Leg 2321 | -8/Materials | Discovered new exit (range 15) 2464 | -8/Materials | Lost 4 parts (1p3n) 2516 | -8/Materials | Identified exit to Factory 2517 | -8/Materials | Entered Factory 2517 | -7/Factory | Evolved 2 slots: Utility x2 2832 | -7/Factory | Build established: Scavenger-Skirmisher 2959 | -7/Factory | Discovered new exit (range 19) 3016 | -7/Factory | Identified exit to Lower Caves 3029 | -7/Factory | Lost 3 parts (1p1n1w) 3472 | -7/Factory | Lost 3 parts (1n1u1w) 3586 | -7/Factory | Discovered new exit (range 7) 3603 | -7/Factory | Identified exit to Factory 3604 | -7/Factory | Entered another Factory area 3604 | -6/Factory | Evolved 2 slots: Power x1, Utility x1 3628 | -6/Factory | Build established: Scavenger-Mutant 4382 | -6/Factory | Lost 4 parts (3n1u) 4519 | -6/Factory | System corruption reached 10% 4611 | -6/Factory | Lost 6 parts (1p2n1u2w) 4716 | -6/Factory | Discovered new exit (range 10) 4726 | -6/Factory | Identified exit to Factory 4728 | -6/Factory | Entered another Factory area 4728 | -5/Factory | Evolved 2 slots: Utility x2 4950 | -5/Factory | Allied Derelicts emerged from ambush trap array 5601 | -5/Factory | Discovered new exit (range 22) 5666 | -5/Factory | Identified exit to Factory 5699 | -5/Factory | Entered another Factory area 5699 | -4/Factory | Evolved 2 slots: Utility x2 5904 | -4/Factory | Crushed by falling debris 5935 | -4/Factory | Lost 3 parts (3u) 6045 | -4/Factory | Found Quantum Capacitor 6083 | -4/Factory | System corruption reached 10% 6096 | -4/Factory | Self-destructed Last Messages --------------- 06086_ Adv. Heat Sink destroyed. 06086_ Penetrated by Slug. 06088_ The unstable cave ceiling collapses. 06089_ Knocked back. 06089_ Destroyed Adv. Heat Sink. 06089_ Destroyed Wheel. 06090_ Penetrated by Slug. 06091_ The unstable cave ceiling collapses. 06093_ System corrupted: Thermic Laser failed to cycle. 06093_ G-73 Enforcer destroyed. 06093_ M-36 Artificer destroyed. 06093_ G-67 Veteran destroyed. 06093_ Adv. Particle Charger destroyed. 06093_ Critical hit (Burn: +37). 06093_ Penetrated by Slug. 06095_ The unstable cave ceiling collapses. 06095_ Quantum Capacitor destroyed. 06095_ System corrupted by crushing effect (+4). 06096_ Slug penetrates Earth. Map ----- +----------------------------------------------------+ | # """ #???##"" "#????????????? | | # """ #???# " "#????????????? | | #! #???# # "###??????????? | | # """ ######"" ????? | | # """ # "" "#######??????? | | # """ # ## " """?????????? | | # + " = " """?????????? | | # """ # ####"""""""""# ????????? | | # """ # #??? # #? ??????? | | # """ ## ##???##### ####??? ??????? | | # ## #?????????##??????? ???????? | | # """ ## #???????????????????????????? | | # """ ## #???????????????????????????? | | # """ ## #???????????????????????????? | | # ? ## #???????????????????????????? | | ########## #???????????????????????????? | | # + #???????????????????????????? | | # # ####+###??###?#??#+###??????? | | # !# ### # ## #??????? | | # # # #??????? | | # + " " " % Y ??????? | | # # " " " ???????? | | # # " " " ?????????? | | # # " " " % #+#####????? | | # # " " " % % ?????? | | ####+##### " " "@b """???????? | | ???# ##### " " " b## """???????? | | ???# " " " # """???????? | | ???# " " " # ##????????????? | | ???# #= #????????????? | | ?### # """ #????????????? | | ?# # """ #????????????? | | ?# # """ #????????????? | | ?# + #????????????? | | ?# # """ #????????????? | | ?# #### """ #????????????? | | ?####### T#######??# """ #????????????? | | ???????####????????# #????????????? | | ???????????????????##########????????????? | | ?????????????????????????????????????????? | | ?????????????????????????????????????????? | | ?????????????????????????????????????????? | | | | | | | | | | | | | | | | | +----------------------------------------------------+ Best States ------------- Heat Dissipation 90 Energy Generation 36 Energy Capacity 520 Matter Stores 300 Matter Capacity 600 Sight Range 22 Robot Scan Range 15 Terrain Scan Density 10 Jamming Range 14 Power Amplification 20 Armor Coverage 225 Core Shielding 20 Weapon Cycling 30 Evasion (%) 55 Targeting Accuracy 5 Target Analysis 11 Particle Charging 25 Offensive Hacking 10 Item Schematics ----------------- None Robot Schematics ------------------ None Fabricated ------------ Nothing Repaired ---------- Imp. Aluminum Leg | 3% | -8/Materials Alien Tech Used ----------------- None Achievements -------------- None Challenges ------------ None Game ------ Seed ChromaticModifiedFalx Manual? 0 Play Time 00:55:27 Cumulative 28.2 hours Start 2025.08.11 @ 07:13:04 End 2025.08.11 @ 08:09:07 Sessions 1 Manual Loads 0 Difficulty Rogue Special Mode None Game No. 80 Rogue 80 Adventurer 0 Explorer 0 Win Type - Total 0 Types 0/0/0/0/0/0/0/0/0/0 Lore% 14 Gallery% 26 Achievement% 21 Wizard Run 0 Options --------- Layout 1 ASCII 0 Keyboard 0 Movement Mouse Keybinds 0 Fullscreen 1 Font 24/Smallcaps Map View 50x35 Zoom Use 0% Tactical HUD 1 Map Filters NONE Filters NONE Steam 1 RUN: 9550fc82-7ebe-4070-bfcd-53d9ae703267